﻿Body Name,Body,Service division categorisation,Expense Type,Date paid,Transaction Reference,Net,Supplier Name
South Holland District Council,http://statistics.data.gov.uk/id/local-authority/32UF,Corporate Accounting,Payroll - Nursery Vouchers,15/06/2021,30002363,597.00 ,Fideliti Limited
South Holland District Council,http://statistics.data.gov.uk/id/local-authority/32UF,Corporate Accounting,Payroll - Student Loan,15/06/2021,30002294,"1,387.00 ",HM Revenue and Customs
South Holland District Council,http://statistics.data.gov.uk/id/local-authority/32UF,Corporate Accounting,Payroll - Unison,24/06/2021,30003027,911.40 ,Unison
South Holland District Council,http://statistics.data.gov.uk/id/local-authority/32UF,Asset and Property,Rent Payments,29/06/2021,30003162,700.00 ,the Curlew Centre
South Holland District Council,http://statistics.data.gov.uk/id/local-authority/32UF,Asset and Property,Water and Sewerage Charges,29/06/2021,30002531,913.61 ,Wave
South Holland District Council,http://statistics.data.gov.uk/id/local-authority/32UF,Capital,Professional Fees,15/06/2021,30002438,"3,080.00 ",Focus Consultants 2010 LLP
South Holland District Council,http://statistics.data.gov.uk/id/local-authority/32UF,Capital,Professional Fees,06/07/2021,30002601,"1,000.00 ",NEC Software Solutions UK Ltd
South Holland District Council,http://statistics.data.gov.uk/id/local-authority/32UF,Capital,Purchase of Vehicles,01/07/2021,30003295,"150,605.00 ",Dennis Eagle
South Holland District Council,http://statistics.data.gov.uk/id/local-authority/32UF,Capital,Works to Buildings (Main Contractor),17/06/2021,30002005,"52,500.00 ",Glen Farrow UK Ltd
South Holland District Council,http://statistics.data.gov.uk/id/local-authority/32UF,Capital,Works to Buildings (Main Contractor),29/06/2021,30002090,"4,393.20 ",Closomat Ltd
South Holland District Council,http://statistics.data.gov.uk/id/local-authority/32UF,Capital,Works to Buildings (Main Contractor),03/06/2021,30002129,"82,574.22 ",Hodgson Sayers Ltd
South Holland District Council,http://statistics.data.gov.uk/id/local-authority/32UF,Capital,Works to Buildings (Main Contractor),15/06/2021,30002225,"1,661.00 ",Obam Domestic Lift Services Ltd
South Holland District Council,http://statistics.data.gov.uk/id/local-authority/32UF,Capital,Works to Buildings (Main Contractor),10/06/2021,30002298,"6,098.65 ",Martin Greaves Building Contractor
South Holland District Council,http://statistics.data.gov.uk/id/local-authority/32UF,Capital,Works to Buildings (Main Contractor),01/07/2021,30003071,"5,930.75 ",JPG Builders
South Holland District Council,http://statistics.data.gov.uk/id/local-authority/32UF,Chief Executive,Agency Staff,08/06/2021,30002162,892.44 ,Hays Specialist Recruitment Limited
South Holland District Council,http://statistics.data.gov.uk/id/local-authority/32UF,Chief Executive,Agency Staff,08/06/2021,30002163,723.60 ,Hays Specialist Recruitment Limited
South Holland District Council,http://statistics.data.gov.uk/id/local-authority/32UF,Chief Executive,Agency Staff,08/06/2021,30002166,892.44 ,Hays Specialist Recruitment Limited
South Holland District Council,http://statistics.data.gov.uk/id/local-authority/32UF,Chief Executive,Agency Staff,08/06/2021,30002168,723.60 ,Hays Specialist Recruitment Limited
South Holland District Council,http://statistics.data.gov.uk/id/local-authority/32UF,Chief Executive,Agency Staff,08/06/2021,30002169,892.44 ,Hays Specialist Recruitment Limited
South Holland District Council,http://statistics.data.gov.uk/id/local-authority/32UF,Chief Executive,Agency Staff,08/06/2021,30002170,892.44 ,Hays Specialist Recruitment Limited
South Holland District Council,http://statistics.data.gov.uk/id/local-authority/32UF,Chief Executive,Agency Staff,17/06/2021,30002538,"2,375.00 ",Penna PLC
South Holland District Council,http://statistics.data.gov.uk/id/local-authority/32UF,Chief Executive,Shared Management,29/06/2021,30002674,"6,426.90 ",Breckland Council
South Holland District Council,http://statistics.data.gov.uk/id/local-authority/32UF,Commercialisation - Growth,Agency Staff,08/06/2021,30002159,892.44 ,Hays Specialist Recruitment Limited
South Holland District Council,http://statistics.data.gov.uk/id/local-authority/32UF,Commercialisation - Growth,Agency Staff,08/06/2021,30002160,892.44 ,Hays Specialist Recruitment Limited
South Holland District Council,http://statistics.data.gov.uk/id/local-authority/32UF,Commercialisation - Growth,Agency Staff,08/06/2021,30002161,892.44 ,Hays Specialist Recruitment Limited
South Holland District Council,http://statistics.data.gov.uk/id/local-authority/32UF,Commercialisation - Growth,Agency Staff,08/06/2021,30002164,892.44 ,Hays Specialist Recruitment Limited
South Holland District Council,http://statistics.data.gov.uk/id/local-authority/32UF,Commercialisation - Growth,Agency Staff,08/06/2021,30002165,723.60 ,Hays Specialist Recruitment Limited
South Holland District Council,http://statistics.data.gov.uk/id/local-authority/32UF,Commercialisation - Growth,Agency Staff,08/06/2021,30002167,892.44 ,Hays Specialist Recruitment Limited
South Holland District Council,http://statistics.data.gov.uk/id/local-authority/32UF,Commercialisation - Property & Development,Agency Staff,08/06/2021,30002233,926.10 ,Hays Specialist Recruitment Limited
South Holland District Council,http://statistics.data.gov.uk/id/local-authority/32UF,Commercialisation - Property & Development,Agency Staff,08/06/2021,30002236,926.10 ,Hays Specialist Recruitment Limited
South Holland District Council,http://statistics.data.gov.uk/id/local-authority/32UF,Commercialisation - Property & Development,Agency Staff,08/06/2021,30002239,926.10 ,Hays Specialist Recruitment Limited
South Holland District Council,http://statistics.data.gov.uk/id/local-authority/32UF,Commercialisation - Property & Development,Agency Staff,08/06/2021,30002241,926.10 ,Hays Specialist Recruitment Limited
South Holland District Council,http://statistics.data.gov.uk/id/local-authority/32UF,Commercialisation - Property & Development,Agency Staff,08/06/2021,30002242,926.10 ,Hays Specialist Recruitment Limited
South Holland District Council,http://statistics.data.gov.uk/id/local-authority/32UF,Commercialisation - Property & Development,Agency Staff,17/06/2021,30002402,926.10 ,Hays Specialist Recruitment Limited
South Holland District Council,http://statistics.data.gov.uk/id/local-authority/32UF,Commercialisation - Property & Development,Agency Staff,15/06/2021,30002460,926.10 ,Hays Specialist Recruitment Limited
South Holland District Council,http://statistics.data.gov.uk/id/local-authority/32UF,Commercialisation - Property & Development,Agency Staff,15/06/2021,30002461,926.10 ,Hays Specialist Recruitment Limited
South Holland District Council,http://statistics.data.gov.uk/id/local-authority/32UF,Community Development,Computer Hardware Maintenance,29/06/2021,30002636,880.11 ,Spektrix Ltd
South Holland District Council,http://statistics.data.gov.uk/id/local-authority/32UF,Community Development,Electricity,22/06/2021,30002740,"1,872.61 ",Total Gas and Power Ltd
South Holland District Council,http://statistics.data.gov.uk/id/local-authority/32UF,Community Development,Electricity,24/06/2021,30003026,"1,453.82 ",Total Gas and Power Ltd
South Holland District Council,http://statistics.data.gov.uk/id/local-authority/32UF,Community Development,Furniture and Equipment,03/06/2021,30001723,"5,319.48 ",Field End Upholstery
South Holland District Council,http://statistics.data.gov.uk/id/local-authority/32UF,Community Development,Furniture and Equipment,22/06/2021,30001993,"5,752.82 ",Jemcom CCTV Limited
South Holland District Council,http://statistics.data.gov.uk/id/local-authority/32UF,Community Development,Gas,22/06/2021,30002065,574.90 ,Espo Gas and Electricity
South Holland District Council,http://statistics.data.gov.uk/id/local-authority/32UF,Community Development,Grants and Contributions - Where a Service is Received,08/07/2021,30002699,"2,968.14 ",Orchestras Live
South Holland District Council,http://statistics.data.gov.uk/id/local-authority/32UF,Community Development,Grants and Contributions to Outside Bodies - No Service Received,29/06/2021,30003039,"3,200.00 ",South Holland In Bloom
South Holland District Council,http://statistics.data.gov.uk/id/local-authority/32UF,Community Development,Materials and Consumables,24/06/2021,30002599,"1,529.10 ",Glenside Nurseries Ltd
South Holland District Council,http://statistics.data.gov.uk/id/local-authority/32UF,Community Development,Materials and Consumables,29/06/2021,30003154,"2,652.50 ",Glenside Nurseries Ltd
South Holland District Council,http://statistics.data.gov.uk/id/local-authority/32UF,Community Development,Other Communication Costs,22/06/2021,30001991,768.00 ,Jemcom CCTV Limited
South Holland District Council,http://statistics.data.gov.uk/id/local-authority/32UF,Community Development,Other Miscellaneous Expenses,22/06/2021,30001994,997.00 ,Jemcom CCTV Limited
South Holland District Council,http://statistics.data.gov.uk/id/local-authority/32UF,Democratic Services,Internet Broadband Payments,29/06/2021,30002359,96.00 ,Multidata
South Holland District Council,http://statistics.data.gov.uk/id/local-authority/32UF,Democratic Services,Other Miscellaneous Expenses,17/06/2021,30002506,"1,050.00 ","All Saints Church, Moulton"
South Holland District Council,http://statistics.data.gov.uk/id/local-authority/32UF,Democratic Services,Other Miscellaneous Expenses,06/07/2021,30002542,"1,000.00 ",Johnson Community Hospital Ball
South Holland District Council,http://statistics.data.gov.uk/id/local-authority/32UF,Democratic Services,Postages,24/06/2021,30002999,"1,924.20 ",Royal Mail Group Ltd
South Holland District Council,http://statistics.data.gov.uk/id/local-authority/32UF,Democratic Services,Stationery,17/06/2021,30002630,607.56 ,Pakflatt (UK) Ltd
South Holland District Council,http://statistics.data.gov.uk/id/local-authority/32UF,Democratic Services,Telephones,29/06/2021,30002359,40.50 ,Multidata
South Holland District Council,http://statistics.data.gov.uk/id/local-authority/32UF,Economic Development,Grants and Contributions to Outside Bodies - No Service Received,10/06/2021,30002326,"6,500.00 ",Bluesky UK Limited
South Holland District Council,http://statistics.data.gov.uk/id/local-authority/32UF,Economic Development,Grants and Contributions to Outside Bodies - No Service Received,10/06/2021,30002327,"3,850.00 ",Hannah Joe - Jackalope Joe Coffee Co
South Holland District Council,http://statistics.data.gov.uk/id/local-authority/32UF,Economic Development,Grants and Contributions to Outside Bodies - No Service Received,10/06/2021,30002337,"1,600.00 ",Lincs Chamber of Commerce and  Industry
South Holland District Council,http://statistics.data.gov.uk/id/local-authority/32UF,Economic Development,Grants and Contributions to Outside Bodies - No Service Received,01/07/2021,30002423,550.00 ,Iliffe Media Publishing Ltd
South Holland District Council,http://statistics.data.gov.uk/id/local-authority/32UF,Economic Development,Grants and Contributions to Outside Bodies - No Service Received,17/06/2021,30002540,"1,021.76 ",VDUB VINTAGE
South Holland District Council,http://statistics.data.gov.uk/id/local-authority/32UF,Economic Development,Professional and Contractors Fees,10/06/2021,30002348,"1,250.00 ",Kudos Project Management
South Holland District Council,http://statistics.data.gov.uk/id/local-authority/32UF,Economic Development,Professional and Contractors Fees,10/06/2021,30002360,"2,550.00 ",Social Change UK
South Holland District Council,http://statistics.data.gov.uk/id/local-authority/32UF,Economic Development,Professional and Contractors Fees,10/06/2021,30002361,"4,575.00 ",Kudos Project Management
South Holland District Council,http://statistics.data.gov.uk/id/local-authority/32UF,Environmental Services,Agency Staff,15/06/2021,30001905,"1,141.28 ",Quality Service Recruitment Ltd
South Holland District Council,http://statistics.data.gov.uk/id/local-authority/32UF,Environmental Services,Agency Staff,01/06/2021,30002055,"3,026.38 ",Essential Staffing Ltd
South Holland District Council,http://statistics.data.gov.uk/id/local-authority/32UF,Environmental Services,Agency Staff,03/06/2021,30002080,"2,988.53 ",Essential Staffing Ltd
South Holland District Council,http://statistics.data.gov.uk/id/local-authority/32UF,Environmental Services,Agency Staff,03/06/2021,30002081,"2,583.42 ",Essential Staffing Ltd
South Holland District Council,http://statistics.data.gov.uk/id/local-authority/32UF,Environmental Services,Agency Staff,03/06/2021,30002082,"2,114.61 ",Encore Personnel Services Ltd
South Holland District Council,http://statistics.data.gov.uk/id/local-authority/32UF,Environmental Services,Agency Staff,03/06/2021,30002083,"1,689.06 ",Blue Arrow Ltd
South Holland District Council,http://statistics.data.gov.uk/id/local-authority/32UF,Environmental Services,Agency Staff,03/06/2021,30002084,"1,206.80 ",The Best Connection Group Ltd
South Holland District Council,http://statistics.data.gov.uk/id/local-authority/32UF,Environmental Services,Agency Staff,03/06/2021,30002085,"4,848.30 ",The Best Connection Group Ltd
South Holland District Council,http://statistics.data.gov.uk/id/local-authority/32UF,Environmental Services,Agency Staff,03/06/2021,30002105,768.80 ,247 Personnel Ltd
South Holland District Council,http://statistics.data.gov.uk/id/local-authority/32UF,Environmental Services,Agency Staff,03/06/2021,30002106,"1,060.70 ",247 Personnel Ltd
South Holland District Council,http://statistics.data.gov.uk/id/local-authority/32UF,Environmental Services,Agency Staff,03/06/2021,30002107,"1,559.16 ",247 Personnel Ltd
South Holland District Council,http://statistics.data.gov.uk/id/local-authority/32UF,Environmental Services,Agency Staff,03/06/2021,30002108,625.81 ,247 Personnel Ltd
South Holland District Council,http://statistics.data.gov.uk/id/local-authority/32UF,Environmental Services,Agency Staff,03/06/2021,30002109,993.65 ,247 Personnel Ltd
South Holland District Council,http://statistics.data.gov.uk/id/local-authority/32UF,Environmental Services,Agency Staff,03/06/2021,30002120,493.68 ,247 Personnel Ltd
South Holland District Council,http://statistics.data.gov.uk/id/local-authority/32UF,Environmental Services,Agency Staff,10/06/2021,30002130,"4,994.58 ",The Best Connection Group Ltd
South Holland District Council,http://statistics.data.gov.uk/id/local-authority/32UF,Environmental Services,Agency Staff,08/06/2021,30002206,"1,156.29 ",247 Personnel Ltd
South Holland District Council,http://statistics.data.gov.uk/id/local-authority/32UF,Environmental Services,Agency Staff,10/06/2021,30002235,"1,150.81 ",Quality Service Recruitment Ltd
South Holland District Council,http://statistics.data.gov.uk/id/local-authority/32UF,Environmental Services,Agency Staff,08/06/2021,30002237,"1,022.32 ",Capital Outsourcing Group Food
South Holland District Council,http://statistics.data.gov.uk/id/local-authority/32UF,Environmental Services,Agency Staff,10/06/2021,30002240,"2,923.58 ",Encore Personnel Services Ltd
South Holland District Council,http://statistics.data.gov.uk/id/local-authority/32UF,Environmental Services,Agency Staff,15/06/2021,30002246,"1,189.92 ",The Best Connection Group Ltd
South Holland District Council,http://statistics.data.gov.uk/id/local-authority/32UF,Environmental Services,Agency Staff,15/06/2021,30002248,"4,593.80 ",The Best Connection Group Ltd
South Holland District Council,http://statistics.data.gov.uk/id/local-authority/32UF,Environmental Services,Agency Staff,10/06/2021,30002250,"5,955.67 ",NJW Services
South Holland District Council,http://statistics.data.gov.uk/id/local-authority/32UF,Environmental Services,Agency Staff,10/06/2021,30002253,"1,603.95 ",Blue Arrow Ltd
South Holland District Council,http://statistics.data.gov.uk/id/local-authority/32UF,Environmental Services,Agency Staff,08/06/2021,30002255,"3,081.64 ",Essential Staffing Ltd
South Holland District Council,http://statistics.data.gov.uk/id/local-authority/32UF,Environmental Services,Agency Staff,10/06/2021,30002257,580.90 ,Quality Service Recruitment Ltd
South Holland District Council,http://statistics.data.gov.uk/id/local-authority/32UF,Environmental Services,Agency Staff,08/06/2021,30002259,"2,071.38 ",Integrity Plus Ltd
South Holland District Council,http://statistics.data.gov.uk/id/local-authority/32UF,Environmental Services,Agency Staff,15/06/2021,30002260,"1,201.98 ",The Best Connection Group Ltd
South Holland District Council,http://statistics.data.gov.uk/id/local-authority/32UF,Environmental Services,Agency Staff,08/06/2021,30002261,"4,088.04 ",The Best Connection Group Ltd
South Holland District Council,http://statistics.data.gov.uk/id/local-authority/32UF,Environmental Services,Agency Staff,10/06/2021,30002262,"2,995.91 ",Essential Staffing Ltd
South Holland District Council,http://statistics.data.gov.uk/id/local-authority/32UF,Environmental Services,Agency Staff,10/06/2021,30002263,877.05 ,Capital Outsourcing Group Food
South Holland District Council,http://statistics.data.gov.uk/id/local-authority/32UF,Environmental Services,Agency Staff,10/06/2021,30002264,"1,112.11 ",247 Personnel Ltd
South Holland District Council,http://statistics.data.gov.uk/id/local-authority/32UF,Environmental Services,Agency Staff,10/06/2021,30002265,905.15 ,247 Personnel Ltd
South Holland District Council,http://statistics.data.gov.uk/id/local-authority/32UF,Environmental Services,Agency Staff,15/06/2021,30002400,"4,551.28 ",The Best Connection Group Ltd
South Holland District Council,http://statistics.data.gov.uk/id/local-authority/32UF,Environmental Services,Agency Staff,15/06/2021,30002404,585.13 ,247 Personnel Ltd
South Holland District Council,http://statistics.data.gov.uk/id/local-authority/32UF,Environmental Services,Agency Staff,15/06/2021,30002412,"1,173.48 ",247 Personnel Ltd
South Holland District Council,http://statistics.data.gov.uk/id/local-authority/32UF,Environmental Services,Agency Staff,15/06/2021,30002415,741.29 ,247 Personnel Ltd
South Holland District Council,http://statistics.data.gov.uk/id/local-authority/32UF,Environmental Services,Agency Staff,17/06/2021,30002416,"1,146.32 ",247 Personnel Ltd
South Holland District Council,http://statistics.data.gov.uk/id/local-authority/32UF,Environmental Services,Agency Staff,17/06/2021,30002417,959.36 ,247 Personnel Ltd
South Holland District Council,http://statistics.data.gov.uk/id/local-authority/32UF,Environmental Services,Agency Staff,15/06/2021,30002418,973.47 ,Capital Outsourcing Group Food
South Holland District Council,http://statistics.data.gov.uk/id/local-authority/32UF,Environmental Services,Agency Staff,24/06/2021,30002419,717.62 ,Quality Service Recruitment Ltd
South Holland District Council,http://statistics.data.gov.uk/id/local-authority/32UF,Environmental Services,Agency Staff,15/06/2021,30002471,"1,842.60 ",247 Personnel Ltd
South Holland District Council,http://statistics.data.gov.uk/id/local-authority/32UF,Environmental Services,Agency Staff,15/06/2021,30002472,"1,025.20 ",247 Personnel Ltd
South Holland District Council,http://statistics.data.gov.uk/id/local-authority/32UF,Environmental Services,Agency Staff,15/06/2021,30002474,637.44 ,247 Personnel Ltd
South Holland District Council,http://statistics.data.gov.uk/id/local-authority/32UF,Environmental Services,Agency Staff,15/06/2021,30002476,835.15 ,247 Personnel Ltd
South Holland District Council,http://statistics.data.gov.uk/id/local-authority/32UF,Environmental Services,Agency Staff,15/06/2021,30002478,"1,701.30 ",247 Personnel Ltd
South Holland District Council,http://statistics.data.gov.uk/id/local-authority/32UF,Environmental Services,Agency Staff,13/07/2021,30002613,"1,050.00 ",Questech Recruitment Limited
South Holland District Council,http://statistics.data.gov.uk/id/local-authority/32UF,Environmental Services,Agency Staff,22/06/2021,30002614,"2,799.27 ",Encore Personnel Services Ltd
South Holland District Council,http://statistics.data.gov.uk/id/local-authority/32UF,Environmental Services,Agency Staff,22/06/2021,30002616,"1,920.30 ",Integrity Plus Ltd
South Holland District Council,http://statistics.data.gov.uk/id/local-authority/32UF,Environmental Services,Agency Staff,22/06/2021,30002617,"1,390.09 ",Blue Arrow Ltd
South Holland District Council,http://statistics.data.gov.uk/id/local-authority/32UF,Environmental Services,Agency Staff,17/06/2021,30002657,581.27 ,Capital Outsourcing Group Food
South Holland District Council,http://statistics.data.gov.uk/id/local-authority/32UF,Environmental Services,Agency Staff,06/07/2021,30002680,"1,010.63 ",Questech Recruitment Limited
South Holland District Council,http://statistics.data.gov.uk/id/local-authority/32UF,Environmental Services,Agency Staff,22/06/2021,30002759,"3,626.05 ",The Best Connection Group Ltd
South Holland District Council,http://statistics.data.gov.uk/id/local-authority/32UF,Environmental Services,Agency Staff,22/06/2021,30002761,"2,637.05 ",Integrity Plus Ltd
South Holland District Council,http://statistics.data.gov.uk/id/local-authority/32UF,Environmental Services,Agency Staff,22/06/2021,30002763,"1,214.04 ",The Best Connection Group Ltd
South Holland District Council,http://statistics.data.gov.uk/id/local-authority/32UF,Environmental Services,Agency Staff,22/06/2021,30002770,"3,258.46 ",Essential Staffing Ltd
South Holland District Council,http://statistics.data.gov.uk/id/local-authority/32UF,Environmental Services,Agency Staff,22/06/2021,30002875,"3,062.28 ",Essential Staffing Ltd
South Holland District Council,http://statistics.data.gov.uk/id/local-authority/32UF,Environmental Services,Agency Staff,22/06/2021,30002884,"3,244.63 ",Encore Personnel Services Ltd
South Holland District Council,http://statistics.data.gov.uk/id/local-authority/32UF,Environmental Services,Agency Staff,22/06/2021,30002890,"3,390.53 ",Encore Personnel Services Ltd
South Holland District Council,http://statistics.data.gov.uk/id/local-authority/32UF,Environmental Services,Agency Staff,22/06/2021,30002892,"1,272.25 ",Blue Arrow Ltd
South Holland District Council,http://statistics.data.gov.uk/id/local-authority/32UF,Environmental Services,Agency Staff,22/06/2021,30002893,619.65 ,Integrity Plus Ltd
South Holland District Council,http://statistics.data.gov.uk/id/local-authority/32UF,Environmental Services,Agency Staff,22/06/2021,30002901,"2,079.63 ",The Best Connection Group Ltd
South Holland District Council,http://statistics.data.gov.uk/id/local-authority/32UF,Environmental Services,Agency Staff,22/06/2021,30002902,"4,282.06 ",The Best Connection Group Ltd
South Holland District Council,http://statistics.data.gov.uk/id/local-authority/32UF,Environmental Services,Agency Staff,22/06/2021,30002904,965.07 ,247 Personnel Ltd
South Holland District Council,http://statistics.data.gov.uk/id/local-authority/32UF,Environmental Services,Agency Staff,24/06/2021,30003106,"1,804.79 ",247 Personnel Ltd
South Holland District Council,http://statistics.data.gov.uk/id/local-authority/32UF,Environmental Services,Agency Staff,24/06/2021,30003110,825.61 ,247 Personnel Ltd
South Holland District Council,http://statistics.data.gov.uk/id/local-authority/32UF,Environmental Services,Agency Staff,24/06/2021,30003114,"1,807.47 ",The Best Connection Group Ltd
South Holland District Council,http://statistics.data.gov.uk/id/local-authority/32UF,Environmental Services,Agency Staff,24/06/2021,30003115,"2,896.27 ",Integrity Plus Ltd
South Holland District Council,http://statistics.data.gov.uk/id/local-authority/32UF,Environmental Services,Agency Staff,29/06/2021,30003116,"1,783.45 ",Essential Staffing Ltd
South Holland District Council,http://statistics.data.gov.uk/id/local-authority/32UF,Environmental Services,Agency Staff,24/06/2021,30003117,"2,966.05 ",Integrity Plus Ltd
South Holland District Council,http://statistics.data.gov.uk/id/local-authority/32UF,Environmental Services,Agency Staff,24/06/2021,30003118,"4,625.23 ",The Best Connection Group Ltd
South Holland District Council,http://statistics.data.gov.uk/id/local-authority/32UF,Environmental Services,Agency Staff,24/06/2021,30003119,636.20 ,Capital Outsourcing Group Food
South Holland District Council,http://statistics.data.gov.uk/id/local-authority/32UF,Environmental Services,Agency Staff,29/06/2021,30003120,"1,721.68 ",Blue Arrow Ltd
South Holland District Council,http://statistics.data.gov.uk/id/local-authority/32UF,Environmental Services,Agency Staff,20/07/2021,30003169,"1,155.00 ",Questech Recruitment Limited
South Holland District Council,http://statistics.data.gov.uk/id/local-authority/32UF,Environmental Services,Cleaning Contract,10/06/2021,30002303,530.00 ,MPC Window Cleaning Service
South Holland District Council,http://statistics.data.gov.uk/id/local-authority/32UF,Environmental Services,Commercial Vehicle Lease Payments (Less than 12 months),29/06/2021,30002604,714.00 ,Go Plant Fleet Services
South Holland District Council,http://statistics.data.gov.uk/id/local-authority/32UF,Environmental Services,Commercial Vehicle Lease Payments (Less than 12 months),29/06/2021,30002707,"1,018.66 ",Go Plant Fleet Services
South Holland District Council,http://statistics.data.gov.uk/id/local-authority/32UF,Environmental Services,Fuel and Oil,03/06/2021,30002104,"6,663.27 ",C H Jones Ltd
South Holland District Council,http://statistics.data.gov.uk/id/local-authority/32UF,Environmental Services,Fuel and Oil,15/06/2021,30002399,"6,953.08 ",C H Jones Ltd
South Holland District Council,http://statistics.data.gov.uk/id/local-authority/32UF,Environmental Services,Fuel and Oil,15/06/2021,30002401,"6,934.04 ",C H Jones Ltd
South Holland District Council,http://statistics.data.gov.uk/id/local-authority/32UF,Environmental Services,Fuel and Oil,17/06/2021,30002612,"6,890.50 ",C H Jones Ltd
South Holland District Council,http://statistics.data.gov.uk/id/local-authority/32UF,Environmental Services,Fuel and Oil,17/06/2021,30002708,"1,202.00 ",WCF Chandlers
South Holland District Council,http://statistics.data.gov.uk/id/local-authority/32UF,Environmental Services,Fuel and Oil,06/07/2021,30002762,432.00 ,Chemodex Limited
South Holland District Council,http://statistics.data.gov.uk/id/local-authority/32UF,Environmental Services,Fuel and Oil,24/06/2021,30003112,"7,273.89 ",C H Jones Ltd
South Holland District Council,http://statistics.data.gov.uk/id/local-authority/32UF,Environmental Services,Furniture and Equipment,24/06/2021,30002124,"3,341.25 ",HAVSco Limited
South Holland District Council,http://statistics.data.gov.uk/id/local-authority/32UF,Environmental Services,Furniture and Equipment,08/06/2021,30002249,"1,350.00 ",Blyth Equipment Ltd
South Holland District Council,http://statistics.data.gov.uk/id/local-authority/32UF,Environmental Services,Furniture and Equipment,10/06/2021,30002338,"1,508.58 ",Bryan Coupland Ltd
South Holland District Council,http://statistics.data.gov.uk/id/local-authority/32UF,Environmental Services,Furniture and Equipment,06/07/2021,30002445,"2,199.90 ",Wybone Ltd
South Holland District Council,http://statistics.data.gov.uk/id/local-authority/32UF,Environmental Services,Furniture and Equipment,17/06/2021,30002507,521.14 ,Veolia Es UK Ltd
South Holland District Council,http://statistics.data.gov.uk/id/local-authority/32UF,Environmental Services,Furniture and Equipment,24/06/2021,30002656,"1,128.00 ",Glenside Nurseries Ltd
South Holland District Council,http://statistics.data.gov.uk/id/local-authority/32UF,Environmental Services,Furniture and Equipment,29/06/2021,30002883,514.07 ,Veolia Es UK Ltd
South Holland District Council,http://statistics.data.gov.uk/id/local-authority/32UF,Environmental Services,Grounds Maintenance Contract (External),10/06/2021,30002335,"3,995.00 ",Greenscape Tree Safe Ltd
South Holland District Council,http://statistics.data.gov.uk/id/local-authority/32UF,Environmental Services,Insurance,15/06/2021,30002373,"5,173.53 ",Kents of Spalding Ltd
South Holland District Council,http://statistics.data.gov.uk/id/local-authority/32UF,Environmental Services,Legal Fees Non-Routine,24/06/2021,30002044,750.00 ,Spire Solicitors LLP
South Holland District Council,http://statistics.data.gov.uk/id/local-authority/32UF,Environmental Services,Maintenance,06/07/2021,30002439,638.00 ,Vision Techniques U K Ltd
South Holland District Council,http://statistics.data.gov.uk/id/local-authority/32UF,Environmental Services,Materials and Consumables,06/07/2021,30002653,"8,501.67 ",RPC BPI Refuse
South Holland District Council,http://statistics.data.gov.uk/id/local-authority/32UF,Environmental Services,Other Miscellaneous Expenses,03/06/2021,30002069,478.40 ,Crusader Traffic Ltd
South Holland District Council,http://statistics.data.gov.uk/id/local-authority/32UF,Environmental Services,Professional and Contractors Fees,03/06/2021,30002061,980.41 ,Kings Armoured Security Services Ltd
South Holland District Council,http://statistics.data.gov.uk/id/local-authority/32UF,Environmental Services,Professional and Contractors Fees,24/06/2021,30002125,900.00 ,Weaar
South Holland District Council,http://statistics.data.gov.uk/id/local-authority/32UF,Environmental Services,Professional and Contractors Fees,08/06/2021,30002140,"1,219.16 ",Lincolnshire County Council
South Holland District Council,http://statistics.data.gov.uk/id/local-authority/32UF,Environmental Services,Professional and Contractors Fees,08/06/2021,30002141,503.58 ,Lincolnshire County Council
South Holland District Council,http://statistics.data.gov.uk/id/local-authority/32UF,Environmental Services,Professional and Contractors Fees,29/06/2021,30002339,"5,917.20 ",Flowbird Smart City Ltd
South Holland District Council,http://statistics.data.gov.uk/id/local-authority/32UF,Environmental Services,Professional and Contractors Fees,15/06/2021,30002443,"2,123.40 ",GBSG Ltd
South Holland District Council,http://statistics.data.gov.uk/id/local-authority/32UF,Environmental Services,Professional and Contractors Fees,08/07/2021,30002632,"1,200.00 ",Weaar
South Holland District Council,http://statistics.data.gov.uk/id/local-authority/32UF,Environmental Services,Professional and Contractors Fees,29/06/2021,30002706,995.92 ,Kings Armoured Security Services Ltd
South Holland District Council,http://statistics.data.gov.uk/id/local-authority/32UF,Environmental Services,Professional and Contractors Fees,15/07/2021,30003107,"1,150.00 ",Weaar
South Holland District Council,http://statistics.data.gov.uk/id/local-authority/32UF,Environmental Services,Tyres,22/06/2021,30002606,464.27 ,B A Bush and Son Ltd
South Holland District Council,http://statistics.data.gov.uk/id/local-authority/32UF,Environmental Services,Tyres,17/06/2021,30002658,"4,518.99 ",Vaculug Technologies Ltd
South Holland District Council,http://statistics.data.gov.uk/id/local-authority/32UF,Environmental Services,Vehicle Hire,17/06/2021,30002660,"5,000.00 ",RCV Tech Ltd
South Holland District Council,http://statistics.data.gov.uk/id/local-authority/32UF,Environmental Services,Workshop Consumables,17/06/2021,30002042,429.77 ,Dennis Eagle
South Holland District Council,http://statistics.data.gov.uk/id/local-authority/32UF,Environmental Services,Workshop Consumables,22/06/2021,30002917,645.00 ,Bryan Coupland Ltd
South Holland District Council,http://statistics.data.gov.uk/id/local-authority/32UF,Environmental Services,Workshop Parts,24/06/2021,30002277,"2,738.97 ",Fleet Factors Ltd
South Holland District Council,http://statistics.data.gov.uk/id/local-authority/32UF,Environmental Services,Workshop Parts,10/06/2021,30002281,493.76 ,S and M Springs
South Holland District Council,http://statistics.data.gov.uk/id/local-authority/32UF,Environmental Services,Workshop Parts,10/06/2021,30002341,"1,785.24 ",EMG Anglia Ltd
South Holland District Council,http://statistics.data.gov.uk/id/local-authority/32UF,Environmental Services,Workshop Parts,08/07/2021,30002678,"2,649.20 ",Fleet Factors Ltd
South Holland District Council,http://statistics.data.gov.uk/id/local-authority/32UF,Environmental Services,Workshop Parts,24/06/2021,30002688,889.61 ,EMG Anglia Ltd
South Holland District Council,http://statistics.data.gov.uk/id/local-authority/32UF,Environmental Services,Workshop Parts,24/06/2021,30002697,558.40 ,S and M Springs
South Holland District Council,http://statistics.data.gov.uk/id/local-authority/32UF,Environmental Services,Workshop Parts,22/06/2021,30002863,762.94 ,Fleet Factors Ltd
South Holland District Council,http://statistics.data.gov.uk/id/local-authority/32UF,Environmental Services,Workshop Parts,15/07/2021,30002926,"6,035.43 ",Fleet Factors Ltd
South Holland District Council,http://statistics.data.gov.uk/id/local-authority/32UF,Finance,Insurance,24/06/2021,30002808,"17,860.00 ",The Risk Factor Ltd
South Holland District Council,http://statistics.data.gov.uk/id/local-authority/32UF,Finance,Professional and Contractors Fees,24/06/2021,30002962,"1,935.00 ",Lincs C C Pension Fund Account
South Holland District Council,http://statistics.data.gov.uk/id/local-authority/32UF,Housing,Bed and Breakfast Accommodation (Homelessness Service),03/06/2021,30002091,490.00 ,Anglia Motel
South Holland District Council,http://statistics.data.gov.uk/id/local-authority/32UF,Housing,Bed and Breakfast Accommodation (Homelessness Service),03/06/2021,30002093,875.00 ,Anglia Motel
South Holland District Council,http://statistics.data.gov.uk/id/local-authority/32UF,Housing,Bed and Breakfast Accommodation (Homelessness Service),03/06/2021,30002098,490.00 ,Anglia Motel
South Holland District Council,http://statistics.data.gov.uk/id/local-authority/32UF,Housing,Bed and Breakfast Accommodation (Homelessness Service),03/06/2021,30002099,490.00 ,Anglia Motel
South Holland District Council,http://statistics.data.gov.uk/id/local-authority/32UF,Housing,Bed and Breakfast Accommodation (Homelessness Service),03/06/2021,30002101,875.00 ,Anglia Motel
South Holland District Council,http://statistics.data.gov.uk/id/local-authority/32UF,Housing,Bed and Breakfast Accommodation (Homelessness Service),03/06/2021,30002102,875.00 ,Anglia Motel
South Holland District Council,http://statistics.data.gov.uk/id/local-authority/32UF,Housing,Bed and Breakfast Accommodation (Homelessness Service),03/06/2021,30002121,560.00 ,Anglia Motel
South Holland District Council,http://statistics.data.gov.uk/id/local-authority/32UF,Housing,Bed and Breakfast Accommodation (Homelessness Service),08/06/2021,30002222,"1,522.86 ",G and A Hotels T A Woodlands Hotel
South Holland District Council,http://statistics.data.gov.uk/id/local-authority/32UF,Housing,Bed and Breakfast Accommodation (Homelessness Service),08/06/2021,30002223,"1,550.16 ",G and A Hotels T A Woodlands Hotel
South Holland District Council,http://statistics.data.gov.uk/id/local-authority/32UF,Housing,Bed and Breakfast Accommodation (Homelessness Service),08/06/2021,30002224,"1,488.40 ",G and A Hotels T A Woodlands Hotel
South Holland District Council,http://statistics.data.gov.uk/id/local-authority/32UF,Housing,Bed and Breakfast Accommodation (Homelessness Service),17/06/2021,30002331,875.00 ,Anglia Motel
South Holland District Council,http://statistics.data.gov.uk/id/local-authority/32UF,Housing,Bed and Breakfast Accommodation (Homelessness Service),17/06/2021,30002332,875.00 ,Anglia Motel
South Holland District Council,http://statistics.data.gov.uk/id/local-authority/32UF,Housing,Bed and Breakfast Accommodation (Homelessness Service),17/06/2021,30002333,875.00 ,Anglia Motel
South Holland District Council,http://statistics.data.gov.uk/id/local-authority/32UF,Housing,Bed and Breakfast Accommodation (Homelessness Service),17/06/2021,30002334,875.00 ,Anglia Motel
South Holland District Council,http://statistics.data.gov.uk/id/local-authority/32UF,Housing,Bed and Breakfast Accommodation (Homelessness Service),10/06/2021,30002343,875.00 ,Anglia Motel
South Holland District Council,http://statistics.data.gov.uk/id/local-authority/32UF,Housing,Bed and Breakfast Accommodation (Homelessness Service),15/06/2021,30002450,875.00 ,Anglia Motel
South Holland District Council,http://statistics.data.gov.uk/id/local-authority/32UF,Housing,Bed and Breakfast Accommodation (Homelessness Service),15/06/2021,30002451,490.00 ,Anglia Motel
South Holland District Council,http://statistics.data.gov.uk/id/local-authority/32UF,Housing,Bed and Breakfast Accommodation (Homelessness Service),15/06/2021,30002452,490.00 ,Anglia Motel
South Holland District Council,http://statistics.data.gov.uk/id/local-authority/32UF,Housing,Bed and Breakfast Accommodation (Homelessness Service),15/06/2021,30002453,490.00 ,Anglia Motel
South Holland District Council,http://statistics.data.gov.uk/id/local-authority/32UF,Housing,Bed and Breakfast Accommodation (Homelessness Service),15/06/2021,30002454,560.00 ,Anglia Motel
South Holland District Council,http://statistics.data.gov.uk/id/local-authority/32UF,Housing,Bed and Breakfast Accommodation (Homelessness Service),15/06/2021,30002455,490.00 ,Anglia Motel
South Holland District Council,http://statistics.data.gov.uk/id/local-authority/32UF,Housing,Bed and Breakfast Accommodation (Homelessness Service),15/06/2021,30002456,490.00 ,Anglia Motel
South Holland District Council,http://statistics.data.gov.uk/id/local-authority/32UF,Housing,Bed and Breakfast Accommodation (Homelessness Service),15/06/2021,30002458,875.00 ,Anglia Motel
South Holland District Council,http://statistics.data.gov.uk/id/local-authority/32UF,Housing,Bed and Breakfast Accommodation (Homelessness Service),15/06/2021,30002459,489.52 ,Anglia Motel
South Holland District Council,http://statistics.data.gov.uk/id/local-authority/32UF,Housing,Bed and Breakfast Accommodation (Homelessness Service),15/06/2021,30002487,"1,365.00 ",Anglia Motel
South Holland District Council,http://statistics.data.gov.uk/id/local-authority/32UF,Housing,Bed and Breakfast Accommodation (Homelessness Service),15/06/2021,30002488,490.00 ,Anglia Motel
South Holland District Council,http://statistics.data.gov.uk/id/local-authority/32UF,Housing,Bed and Breakfast Accommodation (Homelessness Service),15/06/2021,30002492,560.00 ,Anglia Motel
South Holland District Council,http://statistics.data.gov.uk/id/local-authority/32UF,Housing,Bed and Breakfast Accommodation (Homelessness Service),17/06/2021,30002497,490.00 ,Anglia Motel
South Holland District Council,http://statistics.data.gov.uk/id/local-authority/32UF,Housing,Bed and Breakfast Accommodation (Homelessness Service),17/06/2021,30002609,490.00 ,Anglia Motel
South Holland District Council,http://statistics.data.gov.uk/id/local-authority/32UF,Housing,Bed and Breakfast Accommodation (Homelessness Service),17/06/2021,30002661,"1,000.00 ",the Anchor Inn
South Holland District Council,http://statistics.data.gov.uk/id/local-authority/32UF,Housing,Bed and Breakfast Accommodation (Homelessness Service),17/06/2021,30002663,"1,047.62 ",the Anchor Inn
South Holland District Council,http://statistics.data.gov.uk/id/local-authority/32UF,Housing,Bed and Breakfast Accommodation (Homelessness Service),17/06/2021,30002665,800.00 ,the Anchor Inn
South Holland District Council,http://statistics.data.gov.uk/id/local-authority/32UF,Housing,Bed and Breakfast Accommodation (Homelessness Service),17/06/2021,30002670,666.67 ,the Anchor Inn
South Holland District Council,http://statistics.data.gov.uk/id/local-authority/32UF,Housing,Bed and Breakfast Accommodation (Homelessness Service),17/06/2021,30002683,619.05 ,the Anchor Inn
South Holland District Council,http://statistics.data.gov.uk/id/local-authority/32UF,Housing,Bed and Breakfast Accommodation (Homelessness Service),17/06/2021,30002685,"1,000.00 ",the Anchor Inn
South Holland District Council,http://statistics.data.gov.uk/id/local-authority/32UF,Housing,Bed and Breakfast Accommodation (Homelessness Service),17/06/2021,30002686,800.00 ,the Anchor Inn
South Holland District Council,http://statistics.data.gov.uk/id/local-authority/32UF,Housing,Bed and Breakfast Accommodation (Homelessness Service),17/06/2021,30002694,571.43 ,the Anchor Inn
South Holland District Council,http://statistics.data.gov.uk/id/local-authority/32UF,Housing,Bed and Breakfast Accommodation (Homelessness Service),24/06/2021,30003073,875.00 ,Anglia Motel
South Holland District Council,http://statistics.data.gov.uk/id/local-authority/32UF,Housing,Bed and Breakfast Accommodation (Homelessness Service),24/06/2021,30003074,875.00 ,Anglia Motel
South Holland District Council,http://statistics.data.gov.uk/id/local-authority/32UF,Housing,Bed and Breakfast Accommodation (Homelessness Service),24/06/2021,30003075,875.00 ,Anglia Motel
South Holland District Council,http://statistics.data.gov.uk/id/local-authority/32UF,Housing,Bed and Breakfast Accommodation (Homelessness Service),24/06/2021,30003076,875.00 ,Anglia Motel
South Holland District Council,http://statistics.data.gov.uk/id/local-authority/32UF,Housing,Bed and Breakfast Accommodation (Homelessness Service),24/06/2021,30003077,490.00 ,Anglia Motel
South Holland District Council,http://statistics.data.gov.uk/id/local-authority/32UF,Housing,Bed and Breakfast Accommodation (Homelessness Service),24/06/2021,30003078,490.00 ,Anglia Motel
South Holland District Council,http://statistics.data.gov.uk/id/local-authority/32UF,Housing,Bed and Breakfast Accommodation (Homelessness Service),24/06/2021,30003105,875.00 ,Anglia Motel
South Holland District Council,http://statistics.data.gov.uk/id/local-authority/32UF,Housing,Bed and Breakfast Accommodation (Homelessness Service),29/06/2021,30003179,875.00 ,Anglia Motel
South Holland District Council,http://statistics.data.gov.uk/id/local-authority/32UF,Housing,Bed and Breakfast Accommodation (Homelessness Service),29/06/2021,30003186,490.00 ,Anglia Motel
South Holland District Council,http://statistics.data.gov.uk/id/local-authority/32UF,Housing,Bed and Breakfast Accommodation (Homelessness Service),29/06/2021,30003187,875.00 ,Anglia Motel
South Holland District Council,http://statistics.data.gov.uk/id/local-authority/32UF,Housing,Bed and Breakfast Accommodation (Homelessness Service),29/06/2021,30003188,490.00 ,Anglia Motel
South Holland District Council,http://statistics.data.gov.uk/id/local-authority/32UF,Housing,Bed and Breakfast Accommodation (Homelessness Service),29/06/2021,30003192,490.00 ,Anglia Motel
South Holland District Council,http://statistics.data.gov.uk/id/local-authority/32UF,Housing,Bed and Breakfast Accommodation (Homelessness Service),29/06/2021,30003193,490.00 ,Anglia Motel
South Holland District Council,http://statistics.data.gov.uk/id/local-authority/32UF,Housing,Buildings Maintenance - Responsive,01/06/2021,30002051,939.05 ,Aaron Services Ltd
South Holland District Council,http://statistics.data.gov.uk/id/local-authority/32UF,Housing,Buildings Maintenance - Responsive,17/06/2021,30002627,649.58 ,Aaron Services Ltd
South Holland District Council,http://statistics.data.gov.uk/id/local-authority/32UF,Housing,Grants and Contributions to Outside Bodies - No Service Received,15/06/2021,30002297,873.90 ,Longstaff Client Account
South Holland District Council,http://statistics.data.gov.uk/id/local-authority/32UF,Housing,Grants and Contributions to Outside Bodies - No Service Received,10/06/2021,30002347,"1,600.00 ",REDACTED PERSONAL INFORMATION
South Holland District Council,http://statistics.data.gov.uk/id/local-authority/32UF,Housing,Grants and Contributions to Outside Bodies - No Service Received,24/06/2021,30003043,"1,425.00 ",Geoffrey Collings and Co
South Holland District Council,http://statistics.data.gov.uk/id/local-authority/32UF,Housing,Grants and Contributions to Outside Bodies - No Service Received,29/06/2021,30003269,"4,876.22 ",Princebuild Ltd
South Holland District Council,http://statistics.data.gov.uk/id/local-authority/32UF,Housing,Professional and Contractors Fees,29/06/2021,30002426,"1,131.00 ",Language Line Ltd
South Holland District Council,http://statistics.data.gov.uk/id/local-authority/32UF,Housing Landlord Manager,Buildings Maintenance - Programmed,22/06/2021,30002603,"2,790.00 ",Don Scafe Steel Erecting
South Holland District Council,http://statistics.data.gov.uk/id/local-authority/32UF,Housing Landlord Manager,Buildings Maintenance - Programmed,17/06/2021,30002642,680.00 ,Newflame
South Holland District Council,http://statistics.data.gov.uk/id/local-authority/32UF,Housing Landlord Manager,Buildings Maintenance - Programmed,13/07/2021,30002650,"1,445.00 ",Teams Ltd
South Holland District Council,http://statistics.data.gov.uk/id/local-authority/32UF,Housing Landlord Manager,Buildings Maintenance - Programmed,13/07/2021,30002652,"12,976.00 ",Teams Ltd
South Holland District Council,http://statistics.data.gov.uk/id/local-authority/32UF,Housing Landlord Manager,Buildings Maintenance - Programmed,29/06/2021,30003111,"2,535.00 ",Robert Dunmore
South Holland District Council,http://statistics.data.gov.uk/id/local-authority/32UF,Housing Landlord Manager,Buildings Maintenance - Responsive,01/06/2021,30001633,651.92 ,H20 Nationwide Limited
South Holland District Council,http://statistics.data.gov.uk/id/local-authority/32UF,Housing Landlord Manager,Buildings Maintenance - Responsive,03/06/2021,30001793,"4,220.00 ",M and R Glass and Glazing Ltd
South Holland District Council,http://statistics.data.gov.uk/id/local-authority/32UF,Housing Landlord Manager,Buildings Maintenance - Responsive,08/06/2021,30002006,"5,620.00 ",Glen Farrow UK Ltd
South Holland District Council,http://statistics.data.gov.uk/id/local-authority/32UF,Housing Landlord Manager,Buildings Maintenance - Responsive,24/06/2021,30002062,700.93 ,Teams Ltd
South Holland District Council,http://statistics.data.gov.uk/id/local-authority/32UF,Housing Landlord Manager,Buildings Maintenance - Responsive,08/06/2021,30002068,"6,218.00 ",M and R Glass and Glazing Ltd
South Holland District Council,http://statistics.data.gov.uk/id/local-authority/32UF,Housing Landlord Manager,Buildings Maintenance - Responsive,08/06/2021,30002070,"2,832.00 ",M and R Glass and Glazing Ltd
South Holland District Council,http://statistics.data.gov.uk/id/local-authority/32UF,Housing Landlord Manager,Buildings Maintenance - Responsive,08/06/2021,30002127,800.00 ,Drains R Us (Eastern) Ltd
South Holland District Council,http://statistics.data.gov.uk/id/local-authority/32UF,Housing Landlord Manager,Buildings Maintenance - Responsive,10/06/2021,30002172,"1,865.00 ",L Fragale
South Holland District Council,http://statistics.data.gov.uk/id/local-authority/32UF,Housing Landlord Manager,Buildings Maintenance - Responsive,10/06/2021,30002173,998.00 ,L Fragale
South Holland District Council,http://statistics.data.gov.uk/id/local-authority/32UF,Housing Landlord Manager,Buildings Maintenance - Responsive,10/06/2021,30002175,555.00 ,L Fragale
South Holland District Council,http://statistics.data.gov.uk/id/local-authority/32UF,Housing Landlord Manager,Buildings Maintenance - Responsive,10/06/2021,30002184,"1,860.00 ",L Fragale
South Holland District Council,http://statistics.data.gov.uk/id/local-authority/32UF,Housing Landlord Manager,Buildings Maintenance - Responsive,08/06/2021,30002221,590.01 ,GBSG Ltd
South Holland District Council,http://statistics.data.gov.uk/id/local-authority/32UF,Housing Landlord Manager,Buildings Maintenance - Responsive,10/06/2021,30002274,895.00 ,Boors Ltd
South Holland District Council,http://statistics.data.gov.uk/id/local-authority/32UF,Housing Landlord Manager,Buildings Maintenance - Responsive,10/06/2021,30002280,"2,800.00 ",Boors Ltd
South Holland District Council,http://statistics.data.gov.uk/id/local-authority/32UF,Housing Landlord Manager,Buildings Maintenance - Responsive,10/06/2021,30002301,"1,350.00 ",Boors Ltd
South Holland District Council,http://statistics.data.gov.uk/id/local-authority/32UF,Housing Landlord Manager,Buildings Maintenance - Responsive,10/06/2021,30002306,950.00 ,Boors Ltd
South Holland District Council,http://statistics.data.gov.uk/id/local-authority/32UF,Housing Landlord Manager,Buildings Maintenance - Responsive,15/06/2021,30002346,"3,293.81 ",Stuart Taplin Plumbing and Build Maint
South Holland District Council,http://statistics.data.gov.uk/id/local-authority/32UF,Housing Landlord Manager,Buildings Maintenance - Responsive,15/06/2021,30002350,"1,070.37 ",Stuart Taplin Plumbing and Build Maint
South Holland District Council,http://statistics.data.gov.uk/id/local-authority/32UF,Housing Landlord Manager,Buildings Maintenance - Responsive,15/06/2021,30002393,745.00 ,REDACTED PERSONAL INFORMATION
South Holland District Council,http://statistics.data.gov.uk/id/local-authority/32UF,Housing Landlord Manager,Buildings Maintenance - Responsive,01/07/2021,30002431,832.20 ,Citrus Electrical Ltd
South Holland District Council,http://statistics.data.gov.uk/id/local-authority/32UF,Housing Landlord Manager,Buildings Maintenance - Responsive,15/06/2021,30002435,462.36 ,Ashley King Development
South Holland District Council,http://statistics.data.gov.uk/id/local-authority/32UF,Housing Landlord Manager,Buildings Maintenance - Responsive,15/06/2021,30002447,"1,885.00 ",Mr Clever Clean Peterborough Ltd
South Holland District Council,http://statistics.data.gov.uk/id/local-authority/32UF,Housing Landlord Manager,Buildings Maintenance - Responsive,15/06/2021,30002473,720.00 ,Cooleraid Ltd
South Holland District Council,http://statistics.data.gov.uk/id/local-authority/32UF,Housing Landlord Manager,Buildings Maintenance - Responsive,17/06/2021,30002594,"1,104.50 ",JT Ward Joinery Limited
South Holland District Council,http://statistics.data.gov.uk/id/local-authority/32UF,Housing Landlord Manager,Buildings Maintenance - Responsive,17/06/2021,30002628,689.68 ,Aaron Services Ltd
South Holland District Council,http://statistics.data.gov.uk/id/local-authority/32UF,Housing Landlord Manager,Buildings Maintenance - Responsive,22/06/2021,30002644,973.38 ,H20 Nationwide Limited
South Holland District Council,http://statistics.data.gov.uk/id/local-authority/32UF,Housing Landlord Manager,Buildings Maintenance - Responsive,22/06/2021,30002645,651.92 ,H20 Nationwide Limited
South Holland District Council,http://statistics.data.gov.uk/id/local-authority/32UF,Housing Landlord Manager,Buildings Maintenance - Responsive,22/06/2021,30002646,480.00 ,G W Engineering (Lincs) Ltd
South Holland District Council,http://statistics.data.gov.uk/id/local-authority/32UF,Housing Landlord Manager,Buildings Maintenance - Responsive,24/06/2021,30002908,"1,550.00 ",Crowland Cranes
South Holland District Council,http://statistics.data.gov.uk/id/local-authority/32UF,Housing Landlord Manager,Buildings Maintenance - Responsive,24/06/2021,30002918,"1,550.00 ",Crowland Cranes
South Holland District Council,http://statistics.data.gov.uk/id/local-authority/32UF,Housing Landlord Manager,Buildings Maintenance - Responsive,29/06/2021,30003083,"1,074.12 ",Stuart Taplin Plumbing and Build Maint
South Holland District Council,http://statistics.data.gov.uk/id/local-authority/32UF,Housing Landlord Manager,Buildings Maintenance - Responsive,01/07/2021,30003086,"1,068.60 ",Lincs Water Services Ltd
South Holland District Council,http://statistics.data.gov.uk/id/local-authority/32UF,Housing Landlord Manager,Buildings Maintenance - Responsive,29/06/2021,30003101,"2,500.00 ",M and R Glass and Glazing Ltd
South Holland District Council,http://statistics.data.gov.uk/id/local-authority/32UF,Housing Landlord Manager,Cleaning Contract,10/06/2021,30002303,400.00 ,MPC Window Cleaning Service
South Holland District Council,http://statistics.data.gov.uk/id/local-authority/32UF,Housing Landlord Manager,Computer Software Licence Costs,22/06/2021,30002364,"2,175.53 ",Automico Ltd
South Holland District Council,http://statistics.data.gov.uk/id/local-authority/32UF,Housing Landlord Manager,Computer Software Licence Costs,13/07/2021,30003291,"4,177.71 ",Pimss Data Systems
South Holland District Council,http://statistics.data.gov.uk/id/local-authority/32UF,Housing Landlord Manager,Electrical Upgrade,17/06/2021,30002600,"10,465.44 ",D Brown Building Contractors Ltd
South Holland District Council,http://statistics.data.gov.uk/id/local-authority/32UF,Housing Landlord Manager,Electrical Upgrade,22/06/2021,30002701,"8,499.85 ",D Brown Building Contractors Ltd
South Holland District Council,http://statistics.data.gov.uk/id/local-authority/32UF,Housing Landlord Manager,Electricity,22/06/2021,30002536,"2,329.34 ",E.ON
South Holland District Council,http://statistics.data.gov.uk/id/local-authority/32UF,Housing Landlord Manager,Electricity,24/06/2021,30002545,"3,234.14 ",Total Gas and Power Ltd
South Holland District Council,http://statistics.data.gov.uk/id/local-authority/32UF,Housing Landlord Manager,Electricity,17/06/2021,30002547,"3,424.36 ",Total Gas and Power Ltd
South Holland District Council,http://statistics.data.gov.uk/id/local-authority/32UF,Housing Landlord Manager,Electricity,22/06/2021,30002803,"2,730.33 ",Total Gas and Power Ltd
South Holland District Council,http://statistics.data.gov.uk/id/local-authority/32UF,Housing Landlord Manager,Electricity,24/06/2021,30002804,"3,336.59 ",Total Gas and Power Ltd
South Holland District Council,http://statistics.data.gov.uk/id/local-authority/32UF,Housing Landlord Manager,Electricity,29/06/2021,30003256,"4,258.14 ",Total Gas and Power Ltd
South Holland District Council,http://statistics.data.gov.uk/id/local-authority/32UF,Housing Landlord Manager,External Printing and Design Costs,22/06/2021,30002835,640.02 ,Newton Press Ltd
South Holland District Council,http://statistics.data.gov.uk/id/local-authority/32UF,Housing Landlord Manager,Fuel and Oil,03/06/2021,30002104,517.14 ,C H Jones Ltd
South Holland District Council,http://statistics.data.gov.uk/id/local-authority/32UF,Housing Landlord Manager,Fuel and Oil,15/06/2021,30002399,659.16 ,C H Jones Ltd
South Holland District Council,http://statistics.data.gov.uk/id/local-authority/32UF,Housing Landlord Manager,Fuel and Oil,15/06/2021,30002401,305.54 ,C H Jones Ltd
South Holland District Council,http://statistics.data.gov.uk/id/local-authority/32UF,Housing Landlord Manager,Fuel and Oil,17/06/2021,30002612,417.95 ,C H Jones Ltd
South Holland District Council,http://statistics.data.gov.uk/id/local-authority/32UF,Housing Landlord Manager,Fuel and Oil,24/06/2021,30003112,591.19 ,C H Jones Ltd
South Holland District Council,http://statistics.data.gov.uk/id/local-authority/32UF,Housing Landlord Manager,Furniture and Equipment,03/06/2021,30002086,"13,200.69 ",Tunstall Healthcare UK Ltd
South Holland District Council,http://statistics.data.gov.uk/id/local-authority/32UF,Housing Landlord Manager,Furniture and Equipment,03/06/2021,30002087,"11,901.60 ",Tunstall Healthcare UK Ltd
South Holland District Council,http://statistics.data.gov.uk/id/local-authority/32UF,Housing Landlord Manager,Furniture and Equipment,24/06/2021,30002124,"1,113.75 ",HAVSco Limited
South Holland District Council,http://statistics.data.gov.uk/id/local-authority/32UF,Housing Landlord Manager,Furniture and Equipment,10/06/2021,30002311,650.00 ,E.ON Energy Solutions Ltd
South Holland District Council,http://statistics.data.gov.uk/id/local-authority/32UF,Housing Landlord Manager,Furniture and Equipment,10/06/2021,30002313,"1,050.00 ",E.ON Energy Solutions Ltd
South Holland District Council,http://statistics.data.gov.uk/id/local-authority/32UF,Housing Landlord Manager,Furniture and Equipment,17/06/2021,30002507,537.65 ,Veolia Es UK Ltd
South Holland District Council,http://statistics.data.gov.uk/id/local-authority/32UF,Housing Landlord Manager,Furniture and Equipment,01/07/2021,30002633,667.62 ,Tunstall Healthcare UK Ltd
South Holland District Council,http://statistics.data.gov.uk/id/local-authority/32UF,Housing Landlord Manager,Furniture and Equipment,01/07/2021,30002641,"1,141.00 ",Aaron Services Ltd
South Holland District Council,http://statistics.data.gov.uk/id/local-authority/32UF,Housing Landlord Manager,Furniture and Equipment,29/06/2021,30003270,"1,750.00 ",E.ON Energy Solutions Ltd
South Holland District Council,http://statistics.data.gov.uk/id/local-authority/32UF,Housing Landlord Manager,Furniture and Equipment,15/07/2021,30003271,660.50 ,Tunstall Healthcare UK Ltd
South Holland District Council,http://statistics.data.gov.uk/id/local-authority/32UF,Housing Landlord Manager,Gas,22/06/2021,30002231,"1,894.95 ",Espo Gas and Electricity
South Holland District Council,http://statistics.data.gov.uk/id/local-authority/32UF,Housing Landlord Manager,Gas,15/07/2021,30002778,"1,228.98 ",Espo Gas and Electricity
South Holland District Council,http://statistics.data.gov.uk/id/local-authority/32UF,Housing Landlord Manager,Gas Repairs,01/07/2021,30002217,"11,697.37 ",Aaron Services Ltd
South Holland District Council,http://statistics.data.gov.uk/id/local-authority/32UF,Housing Landlord Manager,Gas Repairs,17/06/2021,30002623,"1,645.73 ",Aaron Services Ltd
South Holland District Council,http://statistics.data.gov.uk/id/local-authority/32UF,Housing Landlord Manager,Gas Repairs,17/06/2021,30002625,"9,359.93 ",Aaron Services Ltd
South Holland District Council,http://statistics.data.gov.uk/id/local-authority/32UF,Housing Landlord Manager,Gas Servicing,01/07/2021,30002216,"1,505.73 ",Aaron Services Ltd
South Holland District Council,http://statistics.data.gov.uk/id/local-authority/32UF,Housing Landlord Manager,Gas Servicing,01/07/2021,30003103,"1,952.40 ",Aaron Services Ltd
South Holland District Council,http://statistics.data.gov.uk/id/local-authority/32UF,Housing Landlord Manager,Grounds Maintenance Contract (External),08/06/2021,30002139,"1,100.00 ",Greenscape Tree Safe Ltd
South Holland District Council,http://statistics.data.gov.uk/id/local-authority/32UF,Housing Landlord Manager,Grounds Maintenance Contract (External),17/06/2021,30002464,"4,425.00 ",Dalrod Drainage Solutions
South Holland District Council,http://statistics.data.gov.uk/id/local-authority/32UF,Housing Landlord Manager,Grounds Maintenance Contract (External),08/07/2021,30003152,900.00 ,Greenscape Tree Safe Ltd
South Holland District Council,http://statistics.data.gov.uk/id/local-authority/32UF,Housing Landlord Manager,Internet Broadband Payments,29/06/2021,30002359,75.00 ,Multidata
South Holland District Council,http://statistics.data.gov.uk/id/local-authority/32UF,Housing Landlord Manager,Legal Fees,22/06/2021,30002843,"5,520.00 ",Capsticks Solicitors LLP
South Holland District Council,http://statistics.data.gov.uk/id/local-authority/32UF,Housing Landlord Manager,Legal Fees,22/06/2021,30002845,824.00 ,Capsticks Solicitors LLP
South Holland District Council,http://statistics.data.gov.uk/id/local-authority/32UF,Housing Landlord Manager,Legal Fees,22/06/2021,30002851,600.00 ,Capsticks Solicitors LLP
South Holland District Council,http://statistics.data.gov.uk/id/local-authority/32UF,Housing Landlord Manager,Legal Fees,01/07/2021,30002864,"2,519.00 ",Capsticks Solicitors LLP
South Holland District Council,http://statistics.data.gov.uk/id/local-authority/32UF,Housing Landlord Manager,Legal Fees,01/07/2021,30002909,"2,144.00 ",Capsticks Solicitors LLP
South Holland District Council,http://statistics.data.gov.uk/id/local-authority/32UF,Housing Landlord Manager,Legal Fees,22/06/2021,30002910,"2,100.00 ",Capsticks Solicitors LLP
South Holland District Council,http://statistics.data.gov.uk/id/local-authority/32UF,Housing Landlord Manager,Legal Fees,22/06/2021,30002911,511.00 ,Capsticks Solicitors LLP
South Holland District Council,http://statistics.data.gov.uk/id/local-authority/32UF,Housing Landlord Manager,Legal Fees,01/07/2021,30002912,611.00 ,Capsticks Solicitors LLP
South Holland District Council,http://statistics.data.gov.uk/id/local-authority/32UF,Housing Landlord Manager,Materials and Consumables,01/06/2021,30001845,"2,838.22 ",Saint Gobain Building Distribution
South Holland District Council,http://statistics.data.gov.uk/id/local-authority/32UF,Housing Landlord Manager,Materials and Consumables,01/06/2021,30001846,"2,332.92 ",Saint Gobain Building Distribution
South Holland District Council,http://statistics.data.gov.uk/id/local-authority/32UF,Housing Landlord Manager,Materials and Consumables,03/06/2021,30002041,"3,372.62 ",Saint Gobain Building Distribution
South Holland District Council,http://statistics.data.gov.uk/id/local-authority/32UF,Housing Landlord Manager,Materials and Consumables,17/06/2021,30002420,"3,288.24 ",Saint Gobain Building Distribution
South Holland District Council,http://statistics.data.gov.uk/id/local-authority/32UF,Housing Landlord Manager,Materials and Consumables,24/06/2021,30002986,546.50 ,Kirby and Wells Ltd T A Kawstore
South Holland District Council,http://statistics.data.gov.uk/id/local-authority/32UF,Housing Landlord Manager,Postages,06/07/2021,30002866,687.58 ,Royal Mail Group Ltd
South Holland District Council,http://statistics.data.gov.uk/id/local-authority/32UF,Housing Landlord Manager,Postages,29/06/2021,30002872,"1,438.50 ",Newton Press Ltd
South Holland District Council,http://statistics.data.gov.uk/id/local-authority/32UF,Housing Landlord Manager,Professional and Contractors Fees,03/06/2021,30002060,525.00 ,Hix and Son
South Holland District Council,http://statistics.data.gov.uk/id/local-authority/32UF,Housing Landlord Manager,Professional and Contractors Fees,08/06/2021,30002211,"3,750.00 ",Ark Property Centre
South Holland District Council,http://statistics.data.gov.uk/id/local-authority/32UF,Housing Landlord Manager,Professional and Contractors Fees,29/06/2021,30002256,"3,465.00 ",NPS Peterborough Ltd
South Holland District Council,http://statistics.data.gov.uk/id/local-authority/32UF,Housing Landlord Manager,Professional and Contractors Fees,29/06/2021,30002426,"1,131.00 ",Language Line Ltd
South Holland District Council,http://statistics.data.gov.uk/id/local-authority/32UF,Housing Landlord Manager,Professional and Contractors Fees,15/06/2021,30002432,875.00 ,Longstaff Client Account
South Holland District Council,http://statistics.data.gov.uk/id/local-authority/32UF,Housing Landlord Manager,Professional and Contractors Fees,17/06/2021,30002519,"11,250.00 ",NPS Peterborough Ltd
South Holland District Council,http://statistics.data.gov.uk/id/local-authority/32UF,Housing Landlord Manager,Professional and Contractors Fees,29/06/2021,30002874,585.00 ,Environtec Limited
South Holland District Council,http://statistics.data.gov.uk/id/local-authority/32UF,Housing Landlord Manager,Professional and Contractors Fees,24/06/2021,30003070,"5,000.00 ",Roythornes Ltd
South Holland District Council,http://statistics.data.gov.uk/id/local-authority/32UF,Housing Landlord Manager,Professional and Contractors Fees,01/07/2021,30003303,"5,375.85 ",Lincolnshire County Council
South Holland District Council,http://statistics.data.gov.uk/id/local-authority/32UF,Housing Landlord Manager,Roof Repairs,08/06/2021,30002063,550.00 ,Kev Forman Roofing
South Holland District Council,http://statistics.data.gov.uk/id/local-authority/32UF,Housing Landlord Manager,Roof Repairs,15/06/2021,30002386,485.00 ,Kev Forman Roofing
South Holland District Council,http://statistics.data.gov.uk/id/local-authority/32UF,Housing Landlord Manager,Roof Repairs,15/06/2021,30002446,"1,015.00 ",Kev Forman Roofing
South Holland District Council,http://statistics.data.gov.uk/id/local-authority/32UF,Housing Landlord Manager,Roof Repairs,29/06/2021,30003084,520.00 ,Kev Forman Roofing
South Holland District Council,http://statistics.data.gov.uk/id/local-authority/32UF,Housing Landlord Manager,Roof Repairs,29/06/2021,30003085,650.00 ,Kev Forman Roofing
South Holland District Council,http://statistics.data.gov.uk/id/local-authority/32UF,Housing Landlord Manager,Roof Repairs,29/06/2021,30003099,650.00 ,Kev Forman Roofing
South Holland District Council,http://statistics.data.gov.uk/id/local-authority/32UF,Housing Landlord Manager,Roof Repairs,29/06/2021,30003100,425.00 ,Kev Forman Roofing
South Holland District Council,http://statistics.data.gov.uk/id/local-authority/32UF,Housing Landlord Manager,Solid Fuel Servicing,01/07/2021,30002215,"2,626.36 ",Aaron Services Ltd
South Holland District Council,http://statistics.data.gov.uk/id/local-authority/32UF,Housing Landlord Manager,Solid Fuel Servicing,17/06/2021,30002624,"1,774.01 ",Aaron Services Ltd
South Holland District Council,http://statistics.data.gov.uk/id/local-authority/32UF,Housing Landlord Manager,Staff Training Expenses (Non-Payroll),24/06/2021,30002134,"1,400.00 ",Bytesize Training Ltd
South Holland District Council,http://statistics.data.gov.uk/id/local-authority/32UF,Housing Landlord Manager,Staff Training Expenses (Non-Payroll),01/07/2021,30002424,"1,400.00 ",Bytesize Training Ltd
South Holland District Council,http://statistics.data.gov.uk/id/local-authority/32UF,Housing Landlord Manager,Staff Training Expenses (Non-Payroll),08/07/2021,30002639,"1,750.00 ",Bytesize Training Ltd
South Holland District Council,http://statistics.data.gov.uk/id/local-authority/32UF,Housing Landlord Manager,Staff Training Expenses (Non-Payroll),15/07/2021,30003150,"1,750.00 ",Bytesize Training Ltd
South Holland District Council,http://statistics.data.gov.uk/id/local-authority/32UF,Housing Landlord Manager,Staff Training Expenses (Non-Payroll),20/07/2021,30003292,900.00 ,HQN Ltd
South Holland District Council,http://statistics.data.gov.uk/id/local-authority/32UF,Housing Landlord Manager,Void Repairs,10/06/2021,30002272,"12,050.00 ",Boors Ltd
South Holland District Council,http://statistics.data.gov.uk/id/local-authority/32UF,Housing Landlord Manager,Void Repairs,10/06/2021,30002273,935.00 ,Boors Ltd
South Holland District Council,http://statistics.data.gov.uk/id/local-authority/32UF,Housing Landlord Manager,Void Repairs,10/06/2021,30002305,"6,450.00 ",Boors Ltd
South Holland District Council,http://statistics.data.gov.uk/id/local-authority/32UF,Housing Landlord Manager,Void Repairs,10/06/2021,30002307,"14,750.00 ",Boors Ltd
South Holland District Council,http://statistics.data.gov.uk/id/local-authority/32UF,Housing Landlord Manager,Void Repairs,17/06/2021,30002500,503.27 ,andrew Hicks Ltd
South Holland District Council,http://statistics.data.gov.uk/id/local-authority/32UF,Housing Landlord Manager,Void Repairs,17/06/2021,30002501,560.31 ,andrew Hicks Ltd
South Holland District Council,http://statistics.data.gov.uk/id/local-authority/32UF,Housing Landlord Manager,Void Repairs,17/06/2021,30002503,433.72 ,andrew Hicks Ltd
South Holland District Council,http://statistics.data.gov.uk/id/local-authority/32UF,Housing Landlord Manager,Void Repairs,17/06/2021,30002504,482.16 ,andrew Hicks Ltd
South Holland District Council,http://statistics.data.gov.uk/id/local-authority/32UF,Housing Landlord Manager,Void Repairs,01/07/2021,30003277,419.96 ,andrew Hicks Ltd
South Holland District Council,http://statistics.data.gov.uk/id/local-authority/32UF,HR,Agency Staff,22/06/2021,30002433,54.00 ,The Tess Group
South Holland District Council,http://statistics.data.gov.uk/id/local-authority/32UF,HR,Apprenticeship Levy,15/06/2021,30002294,"1,945.00 ",HM Revenue and Customs
South Holland District Council,http://statistics.data.gov.uk/id/local-authority/32UF,HR,Other Income,15/06/2021,30002363,23.88 ,Fideliti Limited
South Holland District Council,http://statistics.data.gov.uk/id/local-authority/32UF,HR,Other Income,24/06/2021,30003027,-27.34 ,Unison
South Holland District Council,http://statistics.data.gov.uk/id/local-authority/32UF,HR,Staff Training Expenses (Non-Payroll),22/06/2021,30002133,"1,635.00 ",Apex Training Centres UK Ltd
South Holland District Council,http://statistics.data.gov.uk/id/local-authority/32UF,HR,Staff Training Expenses (Non-Payroll),15/06/2021,30002149,950.00 ,The Institute of Licensing (Events) Ltd
South Holland District Council,http://statistics.data.gov.uk/id/local-authority/32UF,HR,Staff Training Expenses (Non-Payroll),22/06/2021,30002433,"1,500.00 ",The Tess Group
South Holland District Council,http://statistics.data.gov.uk/id/local-authority/32UF,HR,Staff Training Expenses (Non-Payroll),01/07/2021,30003307,518.00 ,Apse
South Holland District Council,http://statistics.data.gov.uk/id/local-authority/32UF,ICT and Customer Services,Computer Hardware Maintenance,29/06/2021,30002359,285.00 ,Multidata
South Holland District Council,http://statistics.data.gov.uk/id/local-authority/32UF,ICT and Customer Services,Computer Hardware Maintenance,22/06/2021,30002914,"1,009.61 ",Nominet UK
South Holland District Council,http://statistics.data.gov.uk/id/local-authority/32UF,ICT and Customer Services,Computer Software Licence Costs,01/07/2021,30002422,"10,764.90 ",Axial Systems Ltd
South Holland District Council,http://statistics.data.gov.uk/id/local-authority/32UF,ICT and Customer Services,Computer Software Licence Costs,29/06/2021,30003040,"1,500.00 ",Recite Me Ltd
South Holland District Council,http://statistics.data.gov.uk/id/local-authority/32UF,ICT and Customer Services,Materials and Consumables,15/06/2021,30002421,633.90 ,Banner Group T A Spectrum
South Holland District Council,http://statistics.data.gov.uk/id/local-authority/32UF,ICT and Customer Services,Purchase of Hardware,08/06/2021,30002186,"3,661.50 ",Dell Corporation Ltd
South Holland District Council,http://statistics.data.gov.uk/id/local-authority/32UF,ICT and Customer Services,Purchase of Hardware,17/06/2021,30002499,"13,224.24 ",Dell Corporation Ltd
South Holland District Council,http://statistics.data.gov.uk/id/local-authority/32UF,ICT and Customer Services,Telephones,17/06/2021,30002498,697.66 ,Vodafone Ltd Corporate
South Holland District Council,http://statistics.data.gov.uk/id/local-authority/32UF,Planning,Agency - Vacant Post Cover,17/06/2021,30002123,"1,462.50 ",Vivid Resourcing
South Holland District Council,http://statistics.data.gov.uk/id/local-authority/32UF,Planning,Agency - Vacant Post Cover,22/06/2021,30002483,"1,482.00 ",Vivid Resourcing
South Holland District Council,http://statistics.data.gov.uk/id/local-authority/32UF,Planning,Agency - Vacant Post Cover,22/06/2021,30002485,"1,248.00 ",Vivid Resourcing
South Holland District Council,http://statistics.data.gov.uk/id/local-authority/32UF,Planning,Agency - Vacant Post Cover,22/06/2021,30002615,"1,482.00 ",Vivid Resourcing
South Holland District Council,http://statistics.data.gov.uk/id/local-authority/32UF,Public Protection,Commercial Vehicle Lease Payments (Less than 12 months),22/06/2021,30002906,640.02 ,Alphabet Gb Limited
South Holland District Council,http://statistics.data.gov.uk/id/local-authority/32UF,Public Protection,Fuel and Oil,15/06/2021,30002399,31.23 ,C H Jones Ltd
South Holland District Council,http://statistics.data.gov.uk/id/local-authority/32UF,Public Protection,Fuel and Oil,15/06/2021,30002401,13.39 ,C H Jones Ltd
South Holland District Council,http://statistics.data.gov.uk/id/local-authority/32UF,Public Protection,Other Local Authorities,24/06/2021,30002132,"1,135.00 ",Fenland District Council
South Holland District Council,http://statistics.data.gov.uk/id/local-authority/32UF,Public Protection,Professional and Contractors Fees,17/06/2021,30002593,644.00 ,Robert Murphy Ta Keystone Consultants
South Holland District Council,http://statistics.data.gov.uk/id/local-authority/32UF,Public Protection,Rent Payments,29/06/2021,30002048,488.76 ,A & J Holdings (Spalding) Ltd
South Holland District Council,http://statistics.data.gov.uk/id/local-authority/32UF,Public Protection,Rent Payments,03/06/2021,30002064,"1,934.97 ",Poyntons Consultancy Ltd
South Holland District Council,http://statistics.data.gov.uk/id/local-authority/32UF,SHDC Revenues & Benefits,Court Costs,01/07/2021,30003314,618.50 ,HMCTS
South Holland District Council,http://statistics.data.gov.uk/id/local-authority/32UF,SHDC Revenues & Benefits,Subscriptions to Organisations and Other Bodies,22/06/2021,30002288,"2,450.00 ",Cabinet Office
South Holland District Council,http://statistics.data.gov.uk/id/local-authority/32UF,South Holland Balance Sheet,Payroll - Car Loans,10/06/2021,30002299,"6,190.00 ",Carsa Limited
South Holland District Council,http://statistics.data.gov.uk/id/local-authority/32UF,Spalding Specials,Grants and Contributions to Outside Bodies - No Service Received,29/06/2021,30003037,"4,250.00 ",South Holland Parish Voluntary Car Schem
South Holland District Council,http://statistics.data.gov.uk/id/local-authority/32UF,Spalding Specials,Materials and Consumables,24/06/2021,30002599,"1,529.10 ",Glenside Nurseries Ltd
South Holland District Council,http://statistics.data.gov.uk/id/local-authority/32UF,Spalding Specials,Rent Payments,01/07/2021,30002963,950.00 ,Spalding Rectory Feoffees
South Holland District Council,http://statistics.data.gov.uk/id/local-authority/32UF,Town Centre Improvement Plan,Other Miscellaneous Expenses,22/06/2021,30002885,600.00 ,The Joker Entertainment
